Cogmind - Beta 12 @@@ ROGUE MODE // 2023.04.01 @ 16:20:26 Player: Mr Goldstein Result: Self-destructed Performance ------------- Evolutions (1) 500 Regions Visited (2) 400 Robots Destroyed (20) 100 Value Destroyed (400) 400 Prototype IDs (2) 40 Alien Tech Used (0) 0 Bonus (0) 0 TOTAL SCORE: 1440 Bonus ------- None Cogmind --------- Core Integrity 299/400 Matter 282/300 Energy 100/100 System Corruption 0% Temperature Cool (6) Movement Rolling (135) Ox3 Location -9/Materials Parts ------- > --- POWER (1) -------- (None) > --- PROPULSION (3) --- Wheel Compact Wheel > --- UTILITY (3) ------ Improved Heat Sink Huge Storage Unit Improved Terrain Scanner > --- WEAPON (2) ------- Assault Rifle Light Assault Rifle > --- INVENTORY (25) --- Wheel Heat Sink Large Storage Unit High-capacity Matter Pod (200) Tractor Beam Recalibrator Small Laser Small Laser Particle Gun Peak State ------------ > --- POWER ------------ Ion Engine > --- PROPULSION ------- Wheel Compact Wheel Compact Wheel > --- UTILITY ---------- Improved Heat Sink Huge Storage Unit Improved Terrain Scanner > --- WEAPON ----------- Assault Rifle Light Assault Rifle > --- INVENTORY -------- Wheel Heat Sink Large Storage Unit High-capacity Matter Pod Tractor Beam Recalibrator Small Laser Small Laser Particle Gun [Rating: 14] Favorites ----------- Power Ion Engine Engine Ion Engine Propulsion Compact Wheel Wheel Compact Wheel Utility Improved Heat Sink Device Improved Heat Sink Storage Huge Storage Unit Weapon Assault Rifle Energy Gun Small Laser Ballistic Gun Assault Rifle Build | -11 -10 -9 ------- Run | Jun Mat Mat Slots Evolved 2 | . . 2 Power . | . . . Propulsion 1 | . . 1 Utility 1 | . . 1 Weapon . | . . . Parts Attached 22 | 5 8 9 Power 2 | 1 . 1 Engine 2 | 1 . 1 Core . | . . . Reactor . | . . . Propulsion 4 | 1 1 2 Treads . | . . . Leg . | . . . Wheel 4 | 1 1 2 Hover . | . . . Flight . | . . . Utility 6 | 1 4 1 Device 3 | . 2 1 Storage 3 | 1 2 . Processor . | . . . Hackware . | . . . Protection . | . . . Artifact . | . . . Weapon 10 | 2 3 5 Energy Gun 6 | 1 2 3 Energy Cannon . | . . . Ballistic Gun 4 | 1 1 2 Ballistic Cannon . | . . . Launcher . | . . . Special Weapon . | . . . Impact Weapon . | . . . Slashing Weapon . | . . . Piercing Weapon . | . . . Special Melee Weapon . | . . . Unidentified Prototypes . | . . . Parts Lost 6 | . 1 5 Power 2 | . . 2 Propulsion 2 | . . 2 Utility . | . . . Weapon 2 | . 1 1 Highest Loss Streak 3 | . 1 3 To Critical Strikes . | . . . Average Slot Usage (%) 92 | . 94 89 Engine 13 | . 14 11 Wheel 26 | . 24 29 Device 13 | . 12 15 Storage 13 | . 14 11 Energy Gun 11 | . 12 10 Ballistic Gun 14 | . 15 11 Naked Turns . | . . . Heaviest Build 92 | 13 90 92 Greatest Support 42 | 16 32 42 Greatest Overweight (x) 2 | . 2 2 Average Overweight (x) . | . . 2 Largest Inventory Capacity 25 | 8 25 25 Average Capacity 17 | 6 14 25 Most Carried 11 | 5 11 11 Average Carried 6 | 1 6 9 Final Capacity 25 | 8 25 25 Final Carried 11 | 1 11 9 Class Distribution -------------------- 83% | Mutant 16% | Scavenger-Mutant Dominant Class ---------------- Mutant | -10/Materials Scavenger-Mutant | -9/Materials Resources | -11 -10 -9 ----------- Run | Jun Mat Mat Matter Collected 812 | 176 485 151 Remotely . | . . . Salvage Created 833 | . 582 251 Parts 39 | . 27 12 Haulers Intercepted . | . . . Recyclers Shooed 1 | . 1 . Parts Field Recycled . | . . . Retrieved Matter . | . . . Parts Self-Destructed . | . . . Prevented . | . . . Kills | -11 -10 -9 ------- Run | Jun Mat Mat Combat Hostiles Destroyed 11 | . 6 5 Guns 11 | . 6 5 Classes Destroyed 7 | . 6 1 Worker 3 | . 3 . Tunneler 2 | . 1 1 Recycler 3 | . 3 . Mechanic 1 | . 1 . Swarmer 3 | . 3 . Grunt 7 | . 3 4 Sentry 1 | . . 1 Best Kill Streak 4 | . 4 3 Combat Bots Only 3 | . 3 3 Max Kills in Single Turn 1 | . 1 1 Gunslinging . | . . . Exploded . | . . . Melee . | . . . Uniques/NPCs Destroyed . | . . . Combat | -11 -10 -9 -------- Run | Jun Mat Mat Damage Taken 748 | . 384 364 Core 201 | . 100 101 Absorbed by Shields . | . . . Core Remaining (%) 80 | 100 60 . Volleys Fired 94 | . 52 42 Largest 2 | . 2 2 Hottest 130 | . 105 130 Shots Fired 183 | . 100 83 Gun 183 | . 100 83 Cannon . | . . . Launcher . | . . . Special . | . . . Kinetic 118 | . 66 52 Thermal 65 | . 34 31 Explosive . | . . . Electromagnetic . | . . . Robot Hit Streak 14 | . 14 10 Robot Miss Streak 10 | . 10 4 Penetration Max . | . . . Secondary Targets 2 | . 1 1 Max Gunslinging Chain 1 | . 1 1 Shots Hit Robots 119 | . 64 55 Core Hits 39 | . 25 14 Critical Kills . | . . . Critical Parts Destroyed . | . . . Critical Strikes . | . . . Melee Attacks . | . . . Impact . | . . . Slashing . | . . . Piercing . | . . . Sneak Attacks . | . . . Combat Hostiles . | . . . Follow-up Attacks . | . . . Damage Inflicted 1372 | . 710 662 Guns 1372 | . 710 662 Cannons . | . . . Explosions . | . . . Melee . | . . . Ramming . | . . . Kinetic 832 | . 514 318 Thermal 540 | . 196 344 Explosive . | . . . Electromagnetic . | . . . Impact . | . . . Slashing . | . . . Piercing . | . . . Highest Corruption . | . . . Average Corruption . | . . . Corruption Purged . | . . . Corruption Blocked . | . . . Overload Shots . | . . . Overflow Damage . | . . . Projectiles . | . . . Explosions . | . . . Melee . | . . . Knockbacks . | . . . Impact . | . . . Kinetic . | . . . Secondary . | . . . Self-Inflicted Damage . | . . . Shots . | . . . Rammed . | . . . Targets Rammed . | . . . Kicked . | . . . Crushed . | . . . Highest Temperature 85 | . 6 85 Average Temperature 19 | . 3 46 Received Heat Transfer 282 | . 99 183 Siege Activations . | . . . Robots Corrupted . | . . . Combat Hostiles . | . . . Parts Fried . | . . . Impact Corruptions . | . . . Robots Melted . | . . . Combat Hostiles . | . . . Parts Melted 3 | . . 3 Heat Transferred 1277 | . 460 817 Parts Sabotaged . | . . . Parts Stolen . | . . . Parts Stripped . | . . . Power Chain Reactions . | . . . Missiles Intercepted . | . . . Alert | -11 -10 -9 ------- Run | Jun Mat Mat Peak Influence 215 | . 215 211 Initial 18 | . . 18 Average 109 | . 113 121 Maximum Alert Level 1 | . 1 1 Low Security (%) 91 | 100 89 93 Level 1 8 | . 10 6 Level 2 . | . . . Level 3 . | . . . Level 4 . | . . . Level 5 . | . . . High Security . | . . . Max Security . | . . . Squads Dispatched 1 | . 1 . Investigation . | . . . Extermination . | . . . Reinforcement 1 | . 1 . Assault . | . . . Garrison . | . . . Intercept . | . . . Searches Triggered . | . . . Construction Impeded . | . . . Haulers Reinforced . | . . . Active Scanning Responses . | . . . Cargo Convoy Interrupts . | . . . Stealth | -11 -10 -9 --------- Run | Jun Mat Mat Distress Signals 1 | . 1 . Communications Jammed . | . . . Distress Signals . | . . . Times Spotted 31 | . 16 15 Peak Tracking Total 5 | . 3 5 Tactical Retreats 5 | . 1 4 Traps | -11 -10 -9 ------- Run | Jun Mat Mat Traps Triggered 1 | . 1 . Indirectly . | . . . Trap Hack Attempts . | . . . Triggered . | . . . Disarmed . | . . . Reprogrammed . | . . . Reused . | . . . Traps Extracted . | . . . Installed . | . . . Triggered . | . . . Machines | -11 -10 -9 ---------- Run | Jun Mat Mat Machines Disabled . | . . . Max in Single Turn . | . . . Machines Repaired . | . . . Machines Sabotaged . | . . . Overloaded Fab Kills . | . . . Hacking | -11 -10 -9 --------- Run | Jun Mat Mat Machines Accessed 2 | . 1 1 Terminals 2 | . 1 1 Fabricators . | . . . Repair Stations . | . . . Recycling Units . | . . . Scanalyzers . | . . . Garrison Access . | . . . Total Hacks 6 | . 2 4 Successful 4 | . 1 3 Failed 2 | . 1 1 Catastrophic . | . . . Database Lockouts . | . . . Manual . | . . . Terminals 6 | . 2 4 Fabricators . | . . . Repair Stations . | . . . Recycling Units . | . . . Scanalyzers . | . . . Garrison Access . | . . . Terminal Hacks 4 | . 1 3 Prototype ID Bank 1 | . 1 . Emergency Access Points 1 | . . 1 Dispatch Records 1 | . . 1 Hauler Manifests 1 | . . 1 Fabricator Hacks . | . . . Repair Station Hacks . | . . . Recycling Unit Hacks . | . . . Scanalyzer . | . . . Garrison Access Hacks . | . . . Unauthorized Hacks . | . . . Terminals . | . . . Fabricators . | . . . Repair Stations . | . . . Recycling Units . | . . . Scanalyzers . | . . . Garrison Access . | . . . Data Cores Recovered . | . . . Used . | . . . Hacking Detections 2 | . 1 1 Full Trace Events . | . . . Feedback Events . | . . . Feedback Blocked . | . . . Robot Schematics Acquired . | . . . Robots Built . | . . . Authchips . | . . . Time . | . . . Total Robot Build Rating . | . . . Part Schematics Acquired . | . . . Parts Built . | . . . Authchips . | . . . Time . | . . . Total Part Build Rating . | . . . Parts Repaired . | . . . Time . | . . . Parts Recycled . | . . . Recycled Matter . | . . . Retrieved Matter . | . . . Retrieved Components . | . . . Parts Scanalyzed . | . . . Part Schematics Acquired . | . . . Parts Damaged . | . . . Bothacking | -11 -10 -9 ------------ Run | Jun Mat Mat Used RIF Installer . | . . . Robots Hacked . | . . . Non-combat . | . . . Combat . | . . . Robot Hacks Applied . | . . . Relay Couplers Released . | . . . Fabnet Peak Effective % . | . . . Robots Rewired . | . . . Allies Hacked . | . . . Hacks Repelled . | . . . Allies | -11 -10 -9 -------- Run | Jun Mat Mat Total Allies . | . . . Largest Group . | . . . Highest-Rated Group . | . . . Highest-Rated Ally . | . . . Total Orders . | . . . Ally Attacks . | . . . Total Damage . | . . . Kills . | . . . Allies Corrupted . | . . . Allies Melted . | . . . Intel | -11 -10 -9 ------- Run | Jun Mat Mat Robot Analysis Total . | . . . Derelict Logs Recovered . | . . . Drone Launches . | . . . Drone Recoveries . | . . . Exploration | -11 -10 -9 ------------- Run | Jun Mat Mat Turns Passed 901 | 52 573 276 Spaces Moved 502 | 46 349 107 Core 12 | 12 . . Treads . | . . . Legs . | . . . Wheels 490 | 34 349 107 Hover . | . . . Flight . | . . . Fastest Speed 50 | 50 100 123 Average Speed 108 | 86 106 124 Slowest Speed 130 | 100 130 130 Overloaded Moves . | . . . Propulsion Burnouts . | . . . Robots Hopped . | . . . Cave-ins Triggered . | . . . Exploration Rate (%) 16 | 3 37 10 Regions Visited 2 Branch Regions . Pre-discovered Areas . | . . . Known Exits Taken . | . . . Unknown Exits Taken 2 | 1 1 . Scrap Searched . | . . . Spaces Dug . | . . . Terrain Destroyed . | . . . Melee . | . . . Projectile . | . . . AOE . | . . . Terrain Rammed . | . . . Walls Destroyed . | . . . Machines Disabled . | . . . Actions | -11 -10 -9 --------- Run | Jun Mat Mat Total 681 | 57 454 170 Wait 41 | 1 31 9 Move 500 | 45 348 107 Hop . | . . . Pick Up 23 | 6 14 3 Fast Attach . | . . . Attach 13 | 5 3 5 Detach . | . . . Swap 9 | . 5 4 Drop 1 | . 1 . Fire 94 | . 52 42 Melee . | . . . Ram . | . . . Kick . | . . . Crush . | . . . Escape Stasis . | . . . Rewire . | . . . Trap . | . . . Miscellaneous . | . . . Route ------- -11/Junkyard -10/Materials -9/Materials History --------- Turn | Location | Event 10 | -11/Junkyard | Discovered new exit (range 16) 53 | -11/Junkyard | Entered Materials 270 | -10/Materials | Discovered new exit (range 11) 306 | -10/Materials | Build established: Mutant 626 | -10/Materials | Entered another Materials area 626 | -9/Materials | Evolved 2 slots: Propulsion x1, Utility x1 735 | -9/Materials | Lost 3 parts (1p1n1w) 902 | -9/Materials | Self-destructed Last Messages --------------- 00775_ K-01 Serf collects debris. 00786_ Acquired Imp. Terrain Scanner. 00787_ K-01 Serf collects debris. 00790_ Acquired Wheel. 00791_ K-01 Serf collects debris. 00793_ Acquired 20 matter. 00794_ K-01 Serf collects debris. 00867_ G-47 Trooper destroyed. 00871_ Acquired 60 matter. 00873_ R-06 Scavenger collects Particle Gun. 00877_ R-06 Scavenger collects Aluminum Leg. 00881_ K-01 Serf collects debris. 00889_ R-06 Scavenger collects Mining Laser. 00890_ K-01 Serf collects debris. 00897_ K-01 Serf destroyed. 00897_ K-01 Serf collects debris. 00898_ R-06 Scavenger collects Sml. Laser. 00900_ Ion Engine destroyed. 00901_ Com. Wheel destroyed. 00901_ K-01 Serf collects debris. Map ----- +----------------------------------------------------+ | ?????????????????????????????????????????????????? | | ?????????????????????????????????????????????????? | | ?????????????????????????????????????????????????? | | ?????????????????????????????????????????????????? | | ?????????????????????????????????????????????????? | | ?????????????????????????????????????????????????? | | ?????????????????????????????????????????????????? | | ?????????????????????????????????????????????????? | | ?????????????????????????????????????????????????? | | ?????????????????????????????????????????????????? | | ?????????????????????????????????????????????????? | | ?????????????????????????"?????????"?????????????? | | ?????????????????????????????????????????????????? | | ?????????????????????????????????????????????????? | | ????????????## ?????????????????????#????????????? | | ?????????????? ??#???????????????????? ??????????? | | ????? ???????? ???#????????????##????????????????? | | ?????????????? #??????????????###?#??????????????? | | ????????? ???? ???#???????????# ????????????????? | | ?????????????? ????#??????????+ ????????????????? | | ?????????????? ???????????????# ????????????????? | | ?????????????# #??????????????# #???#????????????? | | ????????????## #??????? ??????# #????????????????? | | ???#?????????# #????????????"?# #????????????????? | | ?#???????#???# #?#???##########+##???????????????? | | ???#?????????# #?????# k@% k #???????????????? | | ?????????????# #????## =%! r #???????????????? | | ??#??????????# ##????# #???????????????? | | ?????????????# ####### #????????? ?????? | | ????#????????# g #???????????????? | | ?????????????# ####### u #??????? ???????? | | ?????????????# ##??#?# a t #???????????????? | | ?????????????# #?#???######g######???????????????? | | ?????????????# #????????# [*r #########??????????? | | ???????????#?# ########## ag #??????????? | | ?????????????# +??????????? | | ?????????????###??####### = #? ????????? | | ???????????????????##??## ==% ##### #??????????? | | ????????????????????#######+###????? #??????????? | | ?????????????#??????# %%! #???????#??????????? | | ?????????????#???#??# ="" #??????????????????? | | ????????????????#???# """ """#??????????????????? | | ???????#????#?#?????# """ S"#??????????????????? | | ?????????#???????#### """ #??????????????????? | | ?????????????????# + !!!#??????????????????? | | ?????????????????# ## !! #??????????????????? | | ?????????????????# ##= !! #??????????????????? | | ?????????????#####+######+#####?????? ???????????? | | ?????????????# # ####### ???????????? | | ?????????????# """"" # #??????????? | +----------------------------------------------------+ Best States ------------- Heat Dissipation 42 Energy Generation 10 Energy Capacity 250 Matter Stores 300 Matter Capacity 300 Sight Range 16 Terrain Scan Range 16 Terrain Scan Density 10 Evasion (%) 50 Item Schematics ----------------- None Robot Schematics ------------------ None Fabricated ------------ Nothing Alien Tech Used ----------------- None Achievements -------------- None Challenges ------------ None Game ------ Seed ElectronDirtyHumpback Manual? 0 Play Time 00:11:46 Cumulative 57.8 hours Start 2023.04.01 @ 16:09:16 End 2023.04.01 @ 16:20:26 Sessions 1 Manual Loads 0 Difficulty Rogue Special Mode None Game No. 83 Rogue 83 Adventurer 0 Explorer 0 Win Type - Total 0 Types 0/0/0/0/0/0/0/0/0 Lore% 43 Gallery% 41 Achievement% 36 Wizard Run 0 Options --------- ASCII 0 Keyboard 0 Movement Arrows Keybinds 0 Fullscreen 1 Font 12/Smallcaps Map View 83x54 Tactical HUD 1 Map Filters NONE Filters NONE Steam 1 RUN: 23c9c1fd-2a27-4ffc-a5c5-5601537a7d37